bitfinex/quotes_BTCUSD_20241107
["timestamp","ask_amount","ask_price","bid_price","bid_amount"]
[1731017382584,1.17632167,75701.0,75700.0,0.110833]
[1731017383005,1.27356052,75701.0,75700.0,0.110833]
[1731017383266,1.25411584,75701.0,75700.0,0.110833]
[1731017383474,1.17632167,75701.0,75700.0,0.110833]
[1731017384111,1.26140442,75701.0,75700.0,0.110833]
[1731017384322,1.20805043,75701.0,75700.0,0.110833]
[1731017384725,1.16416557,75701.0,75700.0,0.110833]
[1731017385365,1.26140442,75701.0,75700.0,0.110833]
[1731017386032,1.16416557,75701.0,75700.0,0.110833]
[1731017386929,1.24195694,75701.0,75700.0,0.110833]
[1731017387155,1.24195606,75701.0,75700.0,0.110833]
[1731017387852,1.02058329,75701.0,75700.0,0.110833]
[1731017388319,1.05448228,75701.0,75700.0,0.110833]
[1731017388537,0.74684227,75701.0,75700.0,0.110833]
[1731017390170,0.05154227,75701.0,75700.0,0.110833]
[1731017390367,0.0320925,75701.0,75700.0,0.110833]
[1731017390931,0.0320925,75701.0,75700.0,0.12498837]
[1731017396630,0.00430288,75707.0,75700.0,0.12498837]
[1731017396631,0.005,75705.0,75701.0,0.1]
[1731017396845,0.005,75704.0,75701.0,0.1]
[1731017397073,0.005,75704.0,75701.0,0.10264167]
[1731017397513,0.005,75704.0,75703.0,0.09886454]
[1731017397722,0.01,75704.0,75703.0,0.09886454]
[1731017398581,0.01,75704.0,75703.0,0.27936454]
[1731017399665,0.005,75704.0,75703.0,0.27936454]
[1731017399879,0.0049364,75705.0,75704.0,0.1]
[1731017401407,0.001666,75707.0,75704.0,0.33374705]
[1731017401625,0.001666,75707.0,75704.0,0.23224102]
[1731017401832,0.001666,75707.0,75705.0,0.09886454]
[1731017402080,0.001666,75707.0,75704.0,0.23224102]
[1731017402722,0.001666,75707.0,75706.0,0.1]
[1731017402962,0.001666,75707.0,75706.0,0.23224102]
[1731017404044,0.001666,75707.0,75706.0,0.25788223]
[1731017404696,0.001666,75707.0,75706.0,0.25524102]
[1731017406521,0.001666,75707.0,75706.0,0.33524102]
[1731017407184,0.001666,75707.0,75706.0,0.33724102]
[1731017407817,0.001666,75707.0,75706.0,0.33524102]
[1731017408040,0.001666,75707.0,75706.0,0.43410556]
[1731017409610,0.001666,75707.0,75706.0,0.38410556]
[1731017410472,0.001666,75707.0,75706.0,0.38610556]
[1731017411132,0.001666,75707.0,75706.0,0.38410556]
[1731017411769,0.001666,75707.0,75706.0,0.46029926]
[1731017411982,0.001666,75707.0,75706.0,0.46229926]
[1731017413771,0.005,75727.0,75713.0,0.002]
[1731017413979,0.005,75727.0,75726.0,0.09886454]
[1731017414415,0.005,75734.0,75726.0,0.09886454]
[1731017414625,0.005,75734.0,75733.0,0.09886454]
[1731017415511,0.01,75734.0,75733.0,0.09886454]
[1731017416391,0.005,75734.0,75733.0,0.09886454]
[1731017416817,0.005,75736.0,75733.0,0.09886454]
[1731017417035,0.005,75739.0,75733.0,0.09886454]
[1731017417271,0.005,75738.0,75729.0,0.10264069]
[1731017417502,0.005,75739.0,75729.0,0.00264069]
[1731017417731,0.005,75739.0,75735.0,0.023]
[1731017418207,0.005,75739.0,75737.0,0.1]
[1731017418423,0.005,75751.0,75737.0,0.1]
[1731017418424,0.03,75750.0,75747.0,0.09886454]
[1731017419300,0.005,75748.0,75747.0,0.1]
[1731017419518,0.23145979,75748.0,75747.0,0.1]
[1731017419757,0.03,75748.0,75747.0,0.1]
[1731017419957,0.035,75748.0,75747.0,0.1]
[1731017420373,0.035,75748.0,75746.0,0.1]
[1731017420828,0.03,75747.0,75746.0,0.1]
[1731017421031,0.03,75747.0,75745.0,0.00264015]
[1731017421345,0.03,75747.0,75740.0,0.1]
[1731017422637,0.03,75747.0,75740.0,0.0876]
[1731017422864,0.03,75747.0,75736.0,0.21164102]
[1731017423074,0.03,75747.0,75740.0,0.15370515]
[1731017423768,0.03,75746.0,75740.0,0.15370515]
[1731017424458,0.03,75746.0,75741.0,0.00264016]
[1731017424689,0.005,75748.0,75741.0,0.10264016]
[1731017424929,0.005,75748.0,75747.0,0.15370515]
[1731017425190,0.03,75751.0,75748.0,0.1]
[1731017425422,0.035,75751.0,75748.0,0.1]
[1731017425643,0.03,75751.0,75749.0,0.00264011]
[1731017425870,0.03,75750.0,75749.0,0.00264011]
[1731017426089,0.03,75750.0,75748.0,0.1]
[1731017427011,0.03,75749.0,75748.0,0.10264]
[1731017427438,0.03,75749.0,75748.0,0.1]
[1731017428592,0.03,75749.0,75748.0,0.25524102]
[1731017428821,0.0881364,75763.0,75748.0,0.25524102]
[1731017428822,0.005,75757.0,75748.0,0.25524102]
[1731017429058,0.0882,75763.0,75748.0,0.25524102]
[1731017429059,0.03,75749.0,75748.0,0.12563985]
[1731017429294,0.03,75749.0,75748.0,0.023]
[1731017429526,0.03,75749.0,75741.0,0.023]
[1731017429956,0.03,75748.0,75741.0,0.023]
[1731017430199,0.03,75748.0,75747.0,0.15370515]
[1731017430424,0.03,75748.0,75747.0,0.17670515]
[1731017430643,0.03,75748.0,75747.0,0.27670515]
[1731017431685,0.03,75748.0,75747.0,0.40894617]
[1731017431882,0.0049364,75756.0,75748.0,0.123]
[1731017432188,0.005,75759.0,75750.0,0.1]
[1731017432415,0.0049364,75756.0,75750.0,0.1]
[1731017432855,0.0049364,75756.0,75751.0,0.00217141]
[1731017433317,0.00433929,75756.0,75751.0,0.00217141]
[1731017433761,0.035,75757.0,75751.0,0.00217141]
[1731017433978,0.00433929,75756.0,75751.0,0.00217141]
[1731017434195,0.005,75752.0,75751.0,0.00217141]
[1731017434411,0.1668,75752.0,75751.0,0.00217141]
[1731017434630,0.1668,75752.0,75739.0,0.1]
[1731017434851,0.1668,75752.0,75747.0,0.19645979]
[1731017435062,0.1668,75752.0,75741.0,0.10219857]
[1731017435327,0.1668,75752.0,75724.0,0.00066071]
[1731017435328,0.005,75738.0,75724.0,0.00066071]
[1731017435532,0.1125,75741.0,75727.0,0.19645979]
[1731017435533,0.04,75728.0,75727.0,0.19645979]
[1731017435751,0.05213234,75728.0,75727.0,0.19645979]
[1731017436219,0.005,75722.0,75718.0,0.19645979]
[1731017436432,0.005,75722.0,75710.0,0.19645979]
[1731017436433,0.005,75716.0,75710.0,0.19645979]
[1731017436940,0.005,75716.0,75710.0,0.21078888]
[1731017437812,0.005,75716.0,75711.0,0.1]
[1731017438464,0.005,75716.0,75710.0,0.01432909]
[1731017438957,0.005,75716.0,75705.0,0.00066071]
[1731017440600,0.005,75716.0,75706.0,0.00066071]
[1731017441089,0.22645979,75709.0,75706.0,0.00066071]
[1731017441315,0.22645979,75709.0,75704.0,0.100833]
[1731017441316,0.18535942,75709.0,75704.0,0.000833]
[1731017441559,0.31960044,75709.0,75704.0,0.000833]
[1731017441788,0.31760044,75709.0,75704.0,0.000833]
[1731017442725,0.04,75705.0,75704.0,0.000833]
[1731017442932,0.32030044,75705.0,75704.0,0.000833]
[1731017443160,0.32030044,75705.0,75704.0,0.00265969]
[1731017443377,0.32530044,75705.0,75704.0,0.000833]
[1731017445654,0.12723929,75701.0,75692.0,0.19645979]
[1731017445869,0.27160044,75701.0,75692.0,0.19645979]
[1731017446101,0.27423732,75701.0,75692.0,0.19645979]
[1731017446360,0.27423732,75701.0,75684.0,0.21402282]
[1731017446361,0.27623732,75701.0,75686.0,0.01373489]
[1731017446575,0.97153732,75701.0,75686.0,0.01373489]
[1731017446818,0.98619426,75701.0,75686.0,0.01373489]
[1731017446994,0.98619385,75701.0,75686.0,0.01373489]
[1731017447262,0.95478031,75701.0,75686.0,0.01373489]
[1731017447482,0.98613374,75701.0,75686.0,0.01373489]
[1731017447712,0.96683718,75701.0,75692.0,0.19645979]
[1731017447926,0.96183718,75701.0,75692.0,0.19645979]
[1731017448375,0.81753929,75701.0,75692.0,0.19645979]
[1731017452298,0.73963929,75701.0,75692.0,0.19645979]
[1731017452543,0.04433929,75701.0,75692.0,0.19645979]
[1731017452767,0.04433929,75701.0,75698.0,0.03188225]
[1731017453214,0.04433929,75701.0,75700.0,0.11265726]
[1731017459105,0.17658031,75701.0,75700.0,0.11265726]
[1731017460257,0.25738031,75701.0,75700.0,0.11265726]
[1731017460700,0.26238031,75701.0,75700.0,0.11265726]
[1731017462499,0.27446014,75701.0,75700.0,0.11265726]
[1731017464265,0.96976014,75701.0,75700.0,0.11265726]
[1731017464485,0.96976014,75701.0,75700.0,0.110833]
[1731017464747,0.96476014,75701.0,75700.0,0.110833]
[1731017465364,0.96976014,75701.0,75700.0,0.110833]
[1731017471009,0.95768031,75701.0,75700.0,0.110833]
[1731017471227,0.96983954,75701.0,75700.0,0.110833]
[1731017473548,0.97483954,75701.0,75700.0,0.110833]
[1731017474404,1.01533038,75701.0,75700.0,0.110833]
[1731017474615,1.01533132,75701.0,75700.0,0.110833]
[1731017475301,0.97484048,75701.0,75700.0,0.110833]
[1731017475523,1.01536377,75701.0,75700.0,0.110833]
[1731017476872,1.0153773,75701.0,75700.0,0.110833]
[1731017477084,0.97484048,75701.0,75700.0,0.110833]
[1731017477296,1.01537976,75701.0,75700.0,0.110833]
[1731017478161,1.01538176,75701.0,75700.0,0.110833]
[1731017480683,1.03484114,75701.0,75700.0,0.110833]
[1731017481561,1.03484313,75701.0,75700.0,0.110833]
[1731017482536,1.09780407,75701.0,75700.0,0.110833]
[1731017482772,0.99430385,75701.0,75700.0,0.08114415]
[1731017484042,0.98930385,75701.0,75700.0,0.08114415]
[1731017484468,1.04734035,75701.0,75700.0,0.08114415]
[1731017484684,0.98930385,75701.0,75700.0,0.08114415]
[1731017484909,0.98931826,75701.0,75700.0,0.08114415]
[1731017485335,0.98931829,75701.0,75700.0,0.08114415]
[1731017485548,1.04765526,75701.0,75700.0,0.08114415]
[1731017486278,0.98931829,75701.0,75700.0,0.08114415]
[1731017486459,1.13288489,75701.0,75700.0,0.08114415]
[1731017487314,1.22961239,75701.0,75700.0,0.08114415]
[1731017487991,1.13288489,75701.0,75700.0,0.08114415]
[1731017488303,1.10138074,75701.0,75700.0,0.08114415]
[1731017488540,1.13303173,75701.0,75700.0,0.08114415]
[1731017489237,1.23035159,75701.0,75700.0,0.08114415]
[1731017489471,1.23035159,75701.0,75700.0,0.08064415]
[1731017489930,1.13303173,75701.0,75700.0,0.08064415]
[1731017491125,1.05223173,75701.0,75700.0,0.08064415]
[1731017491769,0.9085313,75701.0,75700.0,0.08064415]
[1731017491983,1.05226466,75701.0,75700.0,0.08064415]
[1731017492202,0.9085313,75701.0,75700.0,0.08064415]
[1731017492688,1.13012628,75701.0,75700.0,0.08064415]
[1731017493785,1.21182628,75701.0,75700.0,0.08064415]
[1731017494016,0.51652628,75701.0,75700.0,0.08064415]
[1731017495152,0.51655066,75701.0,75700.0,0.08064415]
[1731017495383,0.47928548,75701.0,75700.0,0.08064415]
[1731017497568,0.47927586,75701.0,75700.0,0.08064415]
[1731017498532,0.44760049,75701.0,75700.0,0.08064415]
[1731017498728,0.479266,75701.0,75700.0,0.08064415]
[1731017499772,1.174566,75701.0,75700.0,0.08064415]
[1731017504428,1.29137337,75701.0,75700.0,0.08064415]
[1731017504649,1.15290049,75701.0,75700.0,0.08064415]
[1731017505068,1.23423396,75701.0,75700.0,0.08064415]
[1731017505785,1.05786649,75701.0,75700.0,0.08064415]
[1731017505954,1.11467641,75701.0,75700.0,0.08064415]
[1731017506161,1.01727413,75701.0,75700.0,0.08064415]
[1731017506398,0.87354631,75701.0,75700.0,0.08064415]
[1731017507232,1.11475534,75701.0,75700.0,0.08064415]
[1731017507474,1.11475068,75701.0,75700.0,0.08064415]
[1731017507667,1.01735586,75701.0,75700.0,0.08064415]
[1731017508735,1.1147639,75701.0,75700.0,0.08064415]
[1731017509397,1.01735586,75701.0,75700.0,0.08064415]
[1731017509841,1.14643629,75701.0,75700.0,0.08064415]
[1731017510063,1.04902079,75701.0,75700.0,0.08064415]
[1731017511873,0.40442079,75701.0,75700.0,0.08064415]
[1731017512108,0.48732079,75701.0,75700.0,0.08064415]
[1731017513181,1.2332049,75701.0,75700.0,0.08064415]
[1731017513833,1.36468088,75701.0,75700.0,0.08064415]
[1731017514070,1.23319786,75701.0,75700.0,0.05095111]
[1731017514289,1.23319786,75701.0,75684.0,0.22837937]
[1731017514290,0.17813929,75685.0,75684.0,0.01756303]
[1731017514509,0.98300927,75685.0,75684.0,0.01756303]
[1731017514718,1.04890673,75685.0,75684.0,0.01756303]
[1731017514925,1.12681882,75685.0,75684.0,0.01756303]
[1731017515359,1.04890673,75685.0,75684.0,0.01756303]
[1731017515579,0.88340116,75685.0,75684.0,0.01756303]
[1731017515810,0.005,75676.0,75675.0,0.07959488]
[1731017516028,0.0565154,75676.0,75675.0,0.07959488]
[1731017516245,0.005,75672.0,75671.0,0.0799]
[1731017516472,0.04717611,75672.0,75671.0,0.0799]
[1731017517164,0.04217611,75672.0,75671.0,0.0799]
[1731017517386,0.04216318,75672.0,75671.0,0.0799]
[1731017517593,0.04716318,75672.0,75671.0,0.0799]
[1731017518037,0.04716318,75672.0,75671.0,0.09378672]
[1731017519946,0.05216318,75672.0,75671.0,0.09378672]
[1731017520646,0.04,75672.0,75671.0,0.09378672]
[1731017520875,0.05215699,75672.0,75671.0,0.09378672]
[1731017521084,0.05215636,75672.0,75671.0,0.09378672]
[1731017522769,0.05215693,75672.0,75671.0,0.09378672]
[1731017523249,0.05215683,75672.0,75671.0,0.01388672]
[1731017523663,0.05215683,75672.0,75667.0,0.1]
[1731017523869,0.04215683,75671.0,75667.0,0.1]
[1731017524089,0.04215683,75671.0,75667.0,0.29645979]
[1731017524090,0.04715683,75671.0,75667.0,0.29645979]
[1731017524342,0.04715683,75671.0,75670.0,0.01576732]
[1731017524555,0.04715683,75671.0,75670.0,0.001492]
[1731017524982,0.04215683,75671.0,75670.0,0.001492]
[1731017526076,0.03,75671.0,75670.0,0.001492]
[1731017527210,0.03,75671.0,75670.0,0.050992]
[1731017527646,0.03,75671.0,75670.0,0.231692]
[1731017528812,0.035,75671.0,75670.0,0.001492]
[1731017530558,0.04716187,75671.0,75670.0,0.001492]
[1731017530794,0.17940289,75671.0,75670.0,0.001492]
[1731017531233,0.19885965,75671.0,75670.0,0.001492]
[1731017531443,0.17940289,75671.0,75670.0,0.001492]
[1731017532150,0.19885861,75671.0,75670.0,0.001492]
[1731017532782,0.17440289,75671.0,75670.0,0.001492]
[1731017533026,0.16724102,75671.0,75670.0,0.001492]
[1731017533241,0.17940061,75671.0,75670.0,0.001492]
[1731017533494,0.19885628,75671.0,75670.0,0.001492]
[1731017534137,0.20149316,75671.0,75670.0,0.001492]
[1731017534347,0.40295295,75671.0,75670.0,0.001492]
[1731017534595,0.21319557,75671.0,75670.0,0.001492]
[1731017534813,0.21583245,75671.0,75670.0,0.001492]
[1731017535021,0.25472203,75671.0,75670.0,0.001492]
[1731017535241,0.21583245,75671.0,75670.0,0.001492]
[1731017536267,0.21083245,75671.0,75670.0,0.001492]
[1731017536494,0.21081741,75671.0,75670.0,0.001492]
[1731017536711,0.20818053,75671.0,75670.0,0.001492]
[1731017537366,0.5377772,75671.0,75670.0,0.001492]
[1731017537597,0.34368053,75671.0,75670.0,0.001492]
[1731017537803,0.38254609,75671.0,75670.0,0.001492]
[1731017538017,0.34368053,75671.0,75670.0,0.001492]
[1731017539541,0.33508031,75671.0,75670.0,0.001492]
[1731017539787,0.34722602,75671.0,75670.0,0.001492]
[1731017540015,0.49890193,75671.0,75670.0,0.001492]
[1731017540192,0.41252465,75671.0,75670.0,0.001492]
[1731017540425,0.41052465,75671.0,75670.0,0.001492]
[1731017540813,0.4299575,75671.0,75670.0,0.001492]
[1731017541096,0.4319575,75671.0,75670.0,0.001492]
[1731017541306,0.37365916,75671.0,75670.0,0.001492]
[1731017542725,0.38091178,75671.0,75670.0,0.001492]
[1731017542924,0.41248579,75671.0,75670.0,0.001492]
[1731017543521,0.49981865,75671.0,75670.0,0.001492]
[1731017543761,0.46098718,75671.0,75670.0,0.001492]
[1731017543969,0.37365432,75671.0,75670.0,0.001492]
[1731017544338,0.36344156,75671.0,75670.0,0.001492]
[1731017544531,0.0759133,75671.0,75670.0,0.001492]
[1731017544736,0.05648314,75671.0,75670.0,0.001492]
[1731017547281,0.07589835,75671.0,75670.0,0.001492]
[1731017547510,0.21077625,75671.0,75670.0,0.001492]
[1731017547936,0.22290863,75671.0,75670.0,0.001492]
[1731017548148,0.22027175,75671.0,75670.0,0.001492]
[1731017548589,0.22290863,75671.0,75670.0,0.001492]
[1731017548835,0.2202723,75671.0,75670.0,0.001492]
[1731017549041,0.08803131,75671.0,75670.0,0.001492]
[1731017549260,0.04433929,75671.0,75670.0,0.001492]
[1731017549737,0.04433929,75671.0,75670.0,0.000992]
[1731017551539,0.05647146,75671.0,75670.0,0.000992]
[1731017551996,0.07587878,75671.0,75670.0,0.000992]
[1731017552430,0.08800853,75671.0,75670.0,0.000992]
[1731017552639,0.07587878,75671.0,75670.0,0.000992]
[1731017554601,0.07587068,75671.0,75670.0,0.000992]
[1731017554837,0.07586975,75671.0,75670.0,0.000992]
[1731017555551,0.07586483,75671.0,75670.0,0.000992]
[1731017556210,0.0564645,75671.0,75670.0,0.000992]
[1731017556873,0.05623772,75671.0,75670.0,0.000992]
[1731017557561,0.04411251,75671.0,75670.0,0.000992]
[1731017557777,0.05623987,75671.0,75670.0,0.000992]
[1731017558673,0.07564412,75671.0,75670.0,0.000992]
[1731017559405,0.05623987,75671.0,75670.0,0.000992]
[1731017559841,0.07564636,75671.0,75670.0,0.000992]
[1731017560068,0.07130707,75671.0,75670.0,0.000992]
[1731017560289,0.07564636,75671.0,75670.0,0.000992]
[1731017561192,0.07565009,75671.0,75670.0,0.000992]
[1731017562326,0.07565009,75671.0,75670.0,0.01291876]
[1731017562544,0.07565009,75671.0,75670.0,0.000992]
[1731017563053,0.03911251,75667.0,75666.0,3.825992]
[1731017563271,0.04690306,75667.0,75666.0,3.825992]
[1731017563489,0.05123957,75667.0,75666.0,3.825992]
[1731017564848,0.05123957,75667.0,75666.0,3.83791184]
[1731017566645,0.02977322,75667.0,75666.0,3.93791184]
[1731017566940,0.02977322,75667.0,75666.0,4.05033852]
[1731017567653,0.02977322,75667.0,75666.0,4.05099923]
[1731017568621,0.37437322,75667.0,75666.0,4.05099923]
[1731017569623,0.37437322,75667.0,75666.0,4.05033852]
[1731017569816,0.37437322,75667.0,75666.0,4.18457954]
[1731017570037,0.37437322,75667.0,75666.0,4.18257954]
[1731017570244,0.37441322,75667.0,75666.0,4.18257954]
[1731017570862,0.37441322,75667.0,75666.0,4.20557954]
[1731017571084,0.37441322,75667.0,75666.0,4.20624025]
[1731017572537,0.34671002,75667.0,75666.0,4.20624025]
[1731017572750,0.34671002,75667.0,75666.0,4.23624025]
[1731017574009,0.34671002,75667.0,75666.0,3.96791184]
[1731017574236,0.35171002,75667.0,75666.0,3.96791184]
[1731017574684,0.45213803,75667.0,75666.0,3.86874484]
[1731017574689,0.58871834,75667.0,75666.0,3.86874484]
[1731017574925,0.60812476,75667.0,75666.0,3.856825]
[1731017576049,0.60811998,75667.0,75666.0,3.856825]
[1731017576766,0.47587896,75667.0,75666.0,3.856825]
[1731017577437,0.4952768,75667.0,75666.0,3.856825]
[1731017577666,0.50352605,75667.0,75666.0,3.856825]
[1731017577891,0.4952768,75667.0,75666.0,3.856825]
[1731017579302,0.47587896,75667.0,75666.0,3.856825]
[1731017579770,0.39257896,75667.0,75666.0,3.856825]
[1731017579987,0.38757896,75667.0,75666.0,3.856825]
[1731017581827,0.35604931,75667.0,75666.0,3.856825]
[1731017582054,0.38756368,75667.0,75666.0,3.856825]
[1731017584224,0.38756266,75667.0,75666.0,3.856825]
[1731017586783,0.52480368,75667.0,75666.0,3.856825]
[1731017587006,0.62669149,75667.0,75666.0,3.856825]
[1731017587238,0.62669149,75667.0,75636.0,0.19825454]
[1731017587239,0.005,75638.0,75636.0,0.00179475]
[1731017587521,0.02852983,75637.0,75636.0,0.00179475]
[1731017588658,0.01640931,75637.0,75636.0,0.00179475]
[1731017588889,0.02849165,75637.0,75636.0,0.00179475]
[1731017589115,0.16073167,75637.0,75636.0,0.00179475]
[1731017589343,0.16573167,75637.0,75636.0,0.00179475]
[1731017590491,0.16836855,75637.0,75636.0,0.00179475]
[1731017592046,0.1683319,75637.0,75636.0,0.00179475]
[1731017594793,0.8636319,75637.0,75636.0,0.00179475]
[1731017595013,0.86099502,75637.0,75636.0,0.00179475]
[1731017595534,0.84895033,75637.0,75636.0,0.00179475]
[1731017595762,0.86097536,75637.0,75636.0,0.00179475]
[1731017596002,0.92566387,75637.0,75636.0,0.00179475]
[1731017596441,0.87097536,75637.0,75636.0,0.00179475]
[1731017597335,0.89020915,75637.0,75636.0,0.00179475]
[1731017598218,0.89020915,75637.0,75632.0,0.00041675]
[1731017598219,0.01640931,75633.0,75632.0,0.00041675]
[1731017598430,0.16331224,75633.0,75632.0,0.00041675]
[1731017599340,0.16831224,75633.0,75632.0,0.00041675]
[1731017600214,0.17031224,75633.0,75632.0,0.00041675]
[1731017600500,0.18031224,75633.0,75632.0,0.00041675]
[1731017600710,0.89284603,75633.0,75632.0,0.00041675]
[1731017600931,0.89846385,75633.0,75632.0,0.00041675]
[1731017601363,0.89020915,75633.0,75632.0,0.00041675]
[1731017601570,0.89846391,75633.0,75632.0,0.00041675]
[1731017602195,0.93413339,75633.0,75632.0,0.00041675]
[1731017602405,0.93412616,75633.0,75632.0,0.00041675]
[1731017602612,0.89845668,75633.0,75632.0,0.00041675]
[1731017606980,0.89845668,75633.0,75632.0,0.10041675]
[1731017607200,0.90045668,75633.0,75632.0,0.10041675]
[1731017607412,0.90045668,75633.0,75606.0,0.19645979]
[1731017607413,0.01207002,75611.0,75607.0,0.1]
[1731017607640,0.005,75608.0,75607.0,0.1]
[1731017607858,0.03832153,75608.0,75607.0,0.1]
[1731017608099,0.005,75607.0,75604.0,0.0276]
[1731017608320,0.01259413,75613.0,75604.0,0.0276]
[1731017608321,0.00707002,75605.0,75604.0,0.0276]
[1731017608534,0.03832153,75605.0,75604.0,0.0276]
[1731017608743,0.03832153,75605.0,75600.0,0.52]
[1731017608744,0.03832153,75605.0,75603.0,0.0156]
[1731017608955,0.04157637,75604.0,75603.0,0.0156]
[1731017609168,0.04157637,75604.0,75581.0,0.19645979]
[1731017609169,0.03332153,75604.0,75581.0,0.19645979]
[1731017609389,0.002,75602.0,75585.0,0.15370515]
[1731017609615,0.00207002,75600.0,75585.0,0.11159145]
[1731017609835,0.03125151,75599.0,75586.0,0.00264535]
[1731017610041,0.03332153,75598.0,75574.0,0.1]
[1731017610254,0.00207002,75592.0,75587.0,0.1]
[1731017610462,0.00207002,75590.0,75586.0,0.05370515]
[1731017610729,0.00207002,75588.0,75586.0,0.04870515]
[1731017610943,0.00207002,75586.0,75576.0,0.0196176]
[1731017611151,0.00207002,75586.0,75585.0,0.19990515]
[1731017611377,0.00207002,75586.0,75576.0,0.0196176]
[1731017611378,0.01409912,75586.0,75576.0,0.01952275]
[1731017611597,0.19645979,75593.0,75584.0,0.17670515]
[1731017611598,0.01409912,75585.0,75584.0,0.17670515]
[1731017611820,0.01409912,75585.0,75584.0,0.05740515]
[1731017612056,0.01409912,75585.0,75584.0,0.2111103]
[1731017612272,0.01409912,75585.0,75584.0,0.0111103]
[1731017612742,0.01409912,75585.0,75577.0,0.12611128]
[1731017612965,0.00207002,75581.0,75578.0,0.1]
[1731017613160,0.00207002,75592.0,75579.0,0.02612731]
[1731017613364,0.00207002,75580.0,75579.0,0.02612731]
[1731017613592,0.01411381,75580.0,75555.0,0.0069253]
[1731017613812,0.01411381,75580.0,75556.0,0.35234179]
[1731017613813,0.00207002,75580.0,75556.0,0.35234179]
[1731017614060,0.01795621,75577.0,75558.0,0.023]
[1731017614296,0.01795621,75577.0,75576.0,0.15370515]
[1731017614521,0.01795621,75577.0,75559.0,0.02406189]
[1731017614729,4e-05,75585.0,75577.0,0.18370515]
[1731017614940,0.03,75581.0,75578.0,0.02306704]
[1731017615187,0.03,75581.0,75578.0,0.06409067]
[1731017615410,0.01205323,75580.0,75557.0,0.14901694]
[1731017615645,0.20851302,75579.0,75557.0,0.14901694]
[1731017615887,0.19641979,75579.0,75555.0,0.06080515]
[1731017616099,0.19641979,75579.0,75578.0,0.15370515]
[1731017616311,4e-05,75585.0,75556.0,0.877941]
[1731017616312,4e-05,75585.0,75556.0,0.023]
[1731017616524,0.19645979,75582.0,75558.0,0.19645979]
[1731017616809,0.19645979,75582.0,75555.0,0.15370515]
[1731017616810,0.19645979,75582.0,75555.0,0.15016494]
[1731017616997,0.19645979,75577.0,75556.0,0.877941]
[1731017617201,0.19645979,75577.0,75556.0,0.677941]
[1731017617423,0.19645979,75577.0,75556.0,0.1]
[1731017617640,0.19645979,75573.0,75557.0,0.1]
[1731017617841,0.19645979,75573.0,75572.0,0.15370515]
[1731017618051,0.19649979,75585.0,75552.0,0.11956719]
[1731017618270,0.19645979,75576.0,75556.0,0.19645979]
[1731017618479,0.19645979,75576.0,75557.0,0.536114]
[1731017618688,0.19645979,75574.0,75556.0,0.19645979]
[1731017618905,0.19645979,75574.0,75573.0,0.22920515]
[1731017619116,0.19649979,75585.0,75573.0,0.22920515]
[1731017619348,0.19649979,75585.0,75584.0,0.22920515]
[1731017619569,0.19645979,75593.0,75584.0,0.22920515]
[1731017619777,0.01936011,75592.0,75584.0,0.22920515]
[1731017619984,0.01936011,75591.0,75584.0,0.22920515]
[1731017620189,0.01936011,75590.0,75584.0,0.22920515]
[1731017620397,0.19645979,75593.0,75584.0,0.22920515]
[1731017620398,0.01936094,75589.0,75584.0,0.22920515]
[1731017620658,0.19645979,75593.0,75584.0,0.22920515]
[1731017620659,0.01936094,75588.0,75584.0,0.22920515]
[1731017620897,0.01936094,75587.0,75584.0,0.22920515]
[1731017621110,0.19645979,75593.0,75584.0,0.22920515]
[1731017621335,0.0193611,75592.0,75584.0,0.22920515]
[1731017621546,0.0193611,75591.0,75584.0,0.22920515]
[1731017621766,0.0193611,75590.0,75584.0,0.22920515]
[1731017621999,0.0193611,75589.0,75584.0,0.0755]
[1731017622229,0.0193611,75588.0,75584.0,0.0755]
[1731017622433,0.0193611,75587.0,75584.0,0.0755]
[1731017622667,0.19812779,75593.0,75584.0,0.0755]
[1731017622881,0.01936743,75592.0,75584.0,0.0755]
[1731017623096,0.01936743,75591.0,75584.0,0.0755]
[1731017623319,0.01936743,75590.0,75584.0,0.0755]
[1731017623559,0.19812779,75593.0,75584.0,0.0755]
[1731017623560,0.01936743,75589.0,75584.0,0.0755]
[1731017623775,0.01936743,75588.0,75584.0,0.0755]
[1731017624008,0.19812779,75593.0,75584.0,0.0755]
[1731017624435,0.01937242,75592.0,75584.0,0.07549481]
[1731017624670,0.19812779,75593.0,75584.0,0.07549481]
[1731017624671,0.01937242,75591.0,75584.0,0.07549481]
[1731017624901,0.01937242,75590.0,75584.0,0.07549481]
[1731017625119,0.01937242,75589.0,75584.0,0.07549481]
[1731017625352,0.19812779,75593.0,75584.0,0.07549481]
[1731017625563,0.03149073,75592.0,75584.0,0.07549481]
[1731017625777,0.03149073,75591.0,75584.0,0.07549481]
[1731017625992,0.001668,75593.0,75584.0,0.07549481]
[1731017625993,0.01938009,75590.0,75584.0,0.07549481]
[1731017626257,0.01938009,75589.0,75584.0,0.07549481]
[1731017626474,0.01938009,75588.0,75584.0,0.07549481]
[1731017626695,0.03149883,75587.0,75584.0,0.07549481]
[1731017626912,0.01938009,75586.0,75584.0,0.07549481]
[1731017627138,0.001668,75593.0,75584.0,0.07549481]
[1731017627374,0.2279771,75592.0,75584.0,0.07549481]
[1731017627608,0.03151731,75591.0,75584.0,0.07549481]
[1731017627815,0.01939511,75591.0,75584.0,0.07549481]
[1731017628037,0.012122,75590.0,75584.0,0.07549481]
[1731017628301,0.012122,75589.0,75584.0,0.07549481]
[1731017628504,0.012122,75588.0,75584.0,0.07549481]
[1731017628733,0.012122,75587.0,75584.0,0.07549481]
[1731017628940,0.012122,75586.0,75584.0,0.07549481]
[1731017629153,0.012122,75585.0,75584.0,0.07549481]
[1731017629579,0.012122,75585.0,75584.0,0.0877082]
[1731017629813,0.001668,75593.0,75584.0,0.0877082]
[1731017630027,0.01212682,75585.0,75584.0,0.0877082]
[1731017631532,0.01212934,75585.0,75584.0,0.0877082]
[1731017632173,0.01213008,75585.0,75584.0,0.0877082]
[1731017632395,0.19645979,75592.0,75584.0,0.0877082]
[1731017632650,0.01213135,75591.0,75584.0,0.0877082]
[1731017632850,0.01213135,75590.0,75584.0,0.0877082]
[1731017633058,0.01213135,75589.0,75584.0,0.0877082]
[1731017633261,0.01213135,75588.0,75584.0,0.0877082]
[1731017633469,0.19645979,75592.0,75584.0,0.0877082]
[1731017633470,0.01213135,75587.0,75584.0,0.0877082]
[1731017633678,0.01213135,75586.0,75584.0,0.0877082]
[1731017633897,0.001668,75593.0,75584.0,0.0877082]